[Event "98th Caplin Hastings Masters 2024-25"]
[Site "Hastings"]
[Date "2024.12.29"]
[Round "2.34"]
[White "Gorainow, Nikita"]
[Black "Nielsen, Andre"]
[Result "1/2-1/2"]
[ECO "B10"]
[WhiteElo "2045"]
[BlackElo "2276"]
[Annotator "RC"]
[PlyCount "114"]
[EventDate "2024.12.23"]
[EventType "swiss"]
[EventCountry "ENG"]
[SourceTitle "playchess.com"]
[Source "ChessBase"]
[SourceQuality "1"]
[TimeControl "5400+30"]

1. e4 {[%emt 0:00:09]} c6 {[%emt 0:00:33]} 2. Nf3 {[%emt 0:00:24]} d5 {[%emt 0:00:21]} 3. Nc3 {[%emt 0:00:10]} dxe4 {[%emt 0:01:12]} 4. Nxe4 {[%emt 0:00:06]} Nf6 {[%emt 0:00:13]} 5. Qe2 {[%emt 0:01:18]} Na6 {[%emt 0:01:33]} 6. d4 {[%emt 0:07:36]} Qd5 {[%emt 0:04:20]} 7. Nxf6+ {[%emt 0:12:50]} gxf6 {[%emt 0:01:02]} 8. Bd2 {[%emt 0:05:23]} Bg4 {[%emt 0:08:10]} 9. c4 {[%emt 0:11:02]} Qh5 {[%emt 0:16:26]} 10. O-O-O {[%emt 0:03:20]} O-O-O {[%emt 0:02:36]} 11. Bc3 {[%emt 0:17:32]} Bh6+ {[%emt 0:16:03]} 12. Kb1 {[%emt 0:00:09]} e5 {[%emt 0:10:29]} 13. h3 {[%emt 0:01:51]} Bxf3 {[%emt 0:14:23]} 14. Qxf3 {[%emt 0:07:28]} Qxf3 {[%emt 0:00:36]} 15. gxf3 {[%emt 0:02:25]} exd4 {[%emt 0:04:06]} 16. Rxd4 {[%emt 0:00:26]} Rxd4 {[%emt 0:00:32]} 17. Bxd4 {[%emt 0:00:04]} Rd8 {[%emt 0:00:53]} 18. Be3 {[%emt 0:02:23]} Bxe3 {[%emt 0:01:29]} 19. fxe3 {[%emt 0:00:09]} Nb4 {[%emt 0:00:56]} 20. Be2 {[%emt 0:05:28]} Re8 {[%emt 0:01:10]} 21. e4 {[%emt 0:01:36]} Rd8 {[%emt 0:03:13]} 22. a3 {[%emt 0:09:47]} Nd3 {[%emt 0:09:37]} 23. Bxd3 {[%emt 0:02:32]} Rxd3 {[%emt 0:00:10]} 24. Rf1 {[%emt 0:01:36]} Re3 {[%emt 0:01:29]} 25. Kc1 {[%emt 0:01:29]} a5 {[%emt 0:00:07]} 26. a4 {[%emt 0:02:25]} Re2 {[%emt 0:00:26]} 27. Rg1 {[%emt 0:00:14]} Rh2 {[%emt 0:00:49]} 28. Rg7 {[%emt 0:01:14]} Rxh3 {[%emt 0:00:15]} 29. Rxf7 {[%emt 0:00:04]} Rxf3 {[%emt 0:00:18]} 30. Rxh7 {[%emt 0:00:39]} Rf4 {[%emt 0:00:45]} 31. Re7 {[%emt 0:01:36]} f5 {[%emt 0:01:11]} 32. exf5 {[%emt 0:00:40]} Rxc4+ {[%emt 0:00:32]} 33. Kd2 {[%emt 0:00:06]} Rf4 {[%emt 0:00:07]} 34. b3 {[%emt 0:02:34]} Rxf5 {[%emt 0:00:18]} 35. Kc3 {[%emt 0:00:17]} Rc5+ {[%emt 0:00:39]} 36. Kb2 {[%emt 0:00:37]} Kb8 {[%emt 0:00:38]} 37. Rh7 {[%emt 0:00:20]} Ka7 {[%emt 0:00:10]} 38. Rg7 {[%emt 0:00:17]} Ka6 {[%emt 0:00:17]} 39. Rg4 {[%emt 0:00:39]} Rh5 {[%emt 0:00:31]} 40. Rf4 {[%emt 0:00:12]} Kb6 {[%emt 0:00:11]} 41. Rc4 {[%emt 0:00:27]} Rg5 {[%emt 0:00:31]} 42. Kc3 {[%emt 0:00:19]} Rc5 {[%emt 0:00:50]} 43. Kd4 {[%emt 0:01:13]} Rxc4+ {[%emt 0:00:13]} 44. bxc4 {[%emt 0:00:09]} Kc7 {[%emt 0:00:20]} 45. Ke5 {[%emt 0:01:09]} b6 {[%emt 0:01:37]} 46. Ke4 {[%emt 0:00:28]} Kd7 {[%emt 0:00:37]} 47. Kd3 {[%emt 0:00:33]} Ke7 {[%emt 0:00:26]} 48. Ke3 {[%emt 0:00:10]} Ke6 {[%emt 0:00:08]} 49. Ke4 {[%emt 0:00:06]} Kd6 {[%emt 0:00:45]} 50. Kd4 {[%emt 0:00:08]} Kc7 {[%emt 0:00:18]} 51. Kc3 {[%emt 0:00:08]} Kd8 {[%emt 0:00:49]} 52. Kd2 {[%emt 0:00:57]} Ke7 {[%emt 0:00:13]} 53. Ke3 {[%emt 0:00:05]} Kf6 {[%emt 0:00:35]} 54. Kf4 {[%emt 0:00:23]} b5 {[%emt 0:00:50]} 55. axb5 {[%emt 0:02:38]} cxb5 {[%emt 0:00:10]} 56. cxb5 {[%emt 0:00:00]} Ke6 {[%emt 0:00:29]} 57. Ke4 {[%emt 0:00:00]} Kd6 {[%emt 0:00:06]} 1/2-1/2

[Event "98th Caplin Hastings Masters 2024-25"]
[Site "Hastings"]
[Date "2024.12.29"]
[Round "2.35"]
[White "Kennedy, Craig"]
[Black "Rayner, Francis"]
[Result "1/2-1/2"]
[ECO "B20"]
[WhiteElo "1851"]
[BlackElo "2013"]
[Annotator "NA RC"]
[PlyCount "64"]
[EventDate "2024.12.23"]
[EventType "swiss"]
[EventCountry "ENG"]
[SourceTitle "playchess.com"]
[Source "ChessBase"]
[SourceQuality "1"]
[TimeControl "5400+30"]

1. e4 {[%emt 0:00:03]} c5 {[%emt 0:00:14]} 2. Be2 {[%emt 0:00:06]} Nc6 {[%emt 0:00:19]} 3. f4 {[%emt 0:00:13]} g6 {[%emt 0:00:37]} 4. Nf3 {[%emt 0:00:05]} Bg7 {[%emt 0:00:12]} 5. d3 {[%emt 0:00:09]} d6 {[%emt 0:01:54]} 6. O-O {[%emt 0:00:09]} e6 {[%emt 0:02:25]} 7. c3 {[%emt 0:00:47]} Nge7 {[%emt 0:00:53]} 8. Be3 {[%emt 0:01:21]} b6 {[%emt 0:04:25]} 9. d4 {[%emt 0:00:39]} O-O {[%emt 0:02:33]} 10. Na3 {[%emt 0:03:07]} cxd4 {[%emt 0:04:38]} 11. cxd4 {[%emt 0:00:09]} Bb7 {[%emt 0:00:21]} 12. Nc2 {[%emt 0:03:26]} Rc8 {[%emt 0:02:01]} 13. b3 {[%emt 0:07:57]} Qd7 {[%emt 0:05:37]} 14. Rc1 {[%emt 0:01:06]} Rfe8 {[%emt 0:03:08]} 15. Qe1 {[%emt 0:01:56]} Na5 {[%emt 0:03:33]} 16. Bd3 {[%emt 0:00:39]} f5 {[%emt 0:03:14]} 17. e5 {[%emt 0:05:21]} Nd5 {[%emt 0:10:58]} 18. Bd2 {[%emt 0:00:32]} Nc6 {[%emt 0:01:09]} 19. Qe2 {[%emt 0:08:10]} dxe5 {[%emt 0:04:00]} 20. dxe5 {[%emt 0:02:55]} Red8 {[%emt 0:01:29]} 21. Bc4 {[%emt 0:04:34]} Na5 {[%emt 0:07:49]} 22. Bb5 {[%emt 0:06:36]} Qe7 {[%emt 0:02:16]} 23. b4 {[%emt 0:04:40]} Nc6 {[%emt 0:01:15]} 24. a3 {[%emt 0:00:18]} h6 {[%emt 0:07:16]} 25. g3 {[%emt 0:03:33]} a5 {[%emt 0:07:55]} 26. Bxc6 {[%emt 0:02:27]} Rxc6 {[%emt 0:00:34]} 27. bxa5 {[%emt 0:02:20]} bxa5 {[%emt 0:01:15]} 28. Ncd4 {[%emt 0:05:22]} Rc5 {[%emt 0:03:17]} 29. Rxc5 {[%emt 0:03:24]} Qxc5 {[%emt 0:00:03]} 30. Rc1 {[%emt 0:00:14]} Qb6 {[%emt 0:01:37]} 31. Qb5 {[%emt 0:00:39]} Qxb5 {[%emt 0:04:33]} 32. Nxb5 {[%emt 0:04:44]} Nxf4 {[%emt 0:00:30]} 1/2-1/2

[Event "98th Caplin Hastings Masters 2024-25"]
[Site "Hastings"]
[Date "2024.12.29"]
[Round "2.36"]
[White "Ruane, Brendan J"]
[Black "Gu In-Jung"]
[Result "0-1"]
[ECO "A00"]
[WhiteElo "1869"]
[BlackElo "1987"]
[Annotator "NA RC"]
[PlyCount "62"]
[EventDate "2024.12.23"]
[EventType "swiss"]
[EventCountry "ENG"]
[SourceTitle "playchess.com"]
[Source "ChessBase"]
[SourceQuality "1"]
[TimeControl "5400+30"]

1. Nc3 {[%emt 0:00:24]} d5 {[%emt 0:00:36]} 2. e4 {[%emt 0:00:09]} d4 {[%emt 0:07:23]} 3. Nce2 {[%emt 0:00:07]} e5 {[%emt 0:02:13]} 4. Ng3 {[%emt 0:00:13]} Be6 {[%emt 0:04:25]} 5. Nf3 {[%emt 0:00:12]} Nd7 {[%emt 0:01:05]} 6. b3 {[%emt 0:00:18]} h5 {[%emt 0:12:49]} 7. Bc4 {[%emt 0:00:42]} Bxc4 {[%emt 0:00:29]} 8. bxc4 {[%emt 0:00:07]} h4 {[%emt 0:00:03]} 9. Nf1 {[%emt 0:01:47]} Bb4 {[%emt 0:07:04]} 10. Rb1 {[%emt 0:01:37]} Qe7 {[%emt 0:00:12]} 11. Qe2 {[%emt 0:03:28]} f6 {[%emt 0:09:19]} 12. h3 {[%emt 0:01:24]} O-O-O {[%emt 0:04:57]} 13. N1h2 {[%emt 0:00:19]} g5 {[%emt 0:00:23]} 14. O-O {[%emt 0:00:34]} Nh6 {[%emt 0:00:12]} 15. Ng4 {[%emt 0:06:31]} d3 {[%emt 0:08:21]} 16. cxd3 {[%emt 0:02:42]} Bc5 {[%emt 0:00:40]} 17. d4 {[%emt 0:01:42]} exd4 {[%emt 0:00:23]} 18. d3 {[%emt 0:00:32]} Nxg4 {[%emt 0:00:15]} 19. hxg4 {[%emt 0:00:06]} Ne5 {[%emt 0:00:17]} 20. Nxe5 {[%emt 0:01:53]} Qxe5 {[%emt 0:01:54]} 21. Qb2 {[%emt 0:05:30]} b6 {[%emt 0:00:31]} 22. Qb5 {[%emt 0:03:49]} Qe6 {[%emt 0:01:29]} 23. f3 {[%emt 0:01:05]} h3 {[%emt 0:02:57]} 24. g3 {[%emt 0:00:36]} h2+ {[%emt 0:00:11]} 25. Kg2 {[%emt 0:00:34]} h1=Q+ {[%emt 0:00:59]} 26. Rxh1 {[%emt 0:00:11]} Rxh1 {[%emt 0:00:05]} 27. Kxh1 {[%emt 0:00:10]} Rh8+ {[%emt 0:03:56]} 28. Kg2 {[%emt 0:04:09]} Qe7 {[%emt 0:00:55]} 29. Qc6 {[%emt 0:08:05]} Qh7 {[%emt 0:03:35]} 30. Qa8+ {[%emt 0:00:35]} Kd7 {[%emt 0:00:01]} 31. Qd5+ {[%emt 0:00:16]} Ke7 {[%emt 0:00:06]} 0-1

[Event "98th Caplin Hastings Masters 2024-25"]
[Site "Hastings"]
[Date "2024.12.29"]
[Round "2.37"]
[White "Jacobs, Simon"]
[Black "Rastogi, Nayan Keats"]
[Result "1/2-1/2"]
[ECO "B20"]
[WhiteElo "1756"]
[BlackElo "1892"]
[Annotator "NA RC"]
[PlyCount "57"]
[EventDate "2024.12.23"]
[EventType "swiss"]
[EventCountry "ENG"]
[SourceTitle "playchess.com"]
[Source "ChessBase"]
[SourceQuality "1"]
[TimeControl "5400+30"]

1. e4 {[%emt 0:00:05]} c5 {[%emt 0:00:03]} 2. Be2 {[%emt 0:00:06]} Nc6 {[%emt 0:00:06]} 3. d3 {[%emt 0:00:09]} e6 {[%emt 0:00:05]} 4. f4 {[%emt 0:00:07]} d5 {[%emt 0:00:04]} 5. Nf3 {[%emt 0:01:08]} Bd6 {[%emt 0:00:09]} 6. O-O {[%emt 0:01:46]} Nge7 {[%emt 0:00:16]} 7. c3 {[%emt 0:07:26]} f6 {[%emt 0:00:14]} 8. Na3 {[%emt 0:05:32]} a6 {[%emt 0:02:00]} 9. Nc2 {[%emt 0:02:21]} O-O {[%emt 0:00:44]} 10. Kh1 {[%emt 0:02:38]} Qc7 {[%emt 0:01:11]} 11. g3 {[%emt 0:02:36]} b6 {[%emt 0:04:04]} 12. Be3 {[%emt 0:02:47]} Bb7 {[%emt 0:01:16]} 13. Nd2 {[%emt 0:00:43]} b5 {[%emt 0:25:23]} 14. Bf3 {[%emt 0:02:29]} a5 {[%emt 0:08:42]} 15. Qe2 {[%emt 0:01:40]} b4 {[%emt 0:03:12]} 16. Nb3 {[%emt 0:05:55]} Nd8 {[%emt 0:05:51]} 17. Nd2 {[%emt 0:02:38]} Nf7 {[%emt 0:04:01]} 18. Rac1 {[%emt 0:02:23]} Qd7 {[%emt 0:01:24]} 19. d4 {[%emt 0:10:38]} bxc3 {[%emt 0:14:50]} 20. bxc3 {[%emt 0:01:16]} Ba6 {[%emt 0:03:54]} 21. c4 {[%emt 0:00:22]} Rfc8 {[%emt 0:07:41]} 22. e5 {[%emt 0:10:57]} Bb8 {[%emt 0:03:57]} 23. exf6 {[%emt 0:02:57]} gxf6 {[%emt 0:01:06]} 24. dxc5 {[%emt 0:02:26]} Ba7 {[%emt 0:01:07]} 25. Bg2 {[%emt 0:03:37]} Bxc5 {[%emt 0:01:27]} 26. Bxc5 {[%emt 0:00:27]} Rxc5 {[%emt 0:00:11]} 27. Qg4+ {[%emt 0:01:09]} Kh8 {[%emt 0:00:40]} 28. Nd4 {[%emt 0:01:15]} f5 {[%emt 0:04:45]} 29. Qe2 {[%emt 0:06:47]} 1/2-1/2

[Event "98th Caplin Hastings Masters 2024-25"]
[Site "Hastings"]
[Date "2024.12.29"]
[Round "2.38"]
[White "Royal, Shreyas"]
[Black "Saunders, Aron"]
[Result "1-0"]
[ECO "B19"]
[WhiteElo "2522"]
[BlackElo "2106"]
[Annotator "TA"]
[PlyCount "51"]
[EventDate "2024.12.23"]
[EventType "swiss"]
[EventCountry "ENG"]
[SourceTitle "playchess.com"]
[Source "ChessBase"]
[SourceQuality "1"]
[TimeControl "5400+30"]

{[%evp 18,51,1,0,10,0,18,12,24,0,2,14,40,35,27,67,27,39,134,116,120,0,225,220,195,219,236,203,868,920,861,911,983,1038,29987,29988]} 1. e4 {[%emt 0:00:03]} c6 {[%emt 0:00:05]} 2. d4 {[%emt 0:00:03]} d5 {[%emt 0:00:04]} 3. Nc3 {[%emt 0:00:05]} dxe4 {[%emt 0:00:11]} 4. Nxe4 {[%emt 0:00:06]} Bf5 {[%emt 0:00:08]} 5. Ng3 {[%emt 0:00:04]} Bg6 {[%emt 0:00:03]} 6. h4 {[%emt 0:00:11]} h6 {[%emt 0:00:07]} 7. Nf3 {[%emt 0:00:05]} Nd7 {[%emt 0:00:03]} 8. Bd3 {[%emt 0:00:17]} Bxd3 {[%emt 0:00:31]} 9. Qxd3 {[%emt 0:00:06]} e6 {[%emt 0:00:05]} 10. Bf4 {[%emt 0:00:07]} Qa5+ {[%emt 0:00:28]} 11. Bd2 {[%emt 0:00:06]} Bb4 {[%emt 0:00:33]} 12. c3 {[%emt 0:00:07]} Be7 {[%emt 0:00:41]} 13. c4 {[%emt 0:00:05]} Qc7 {[%emt 0:00:30]} 14. Nh5 {[%emt 0:00:15]} g6 {[%emt 0:14:38]} 15. Ng7+ {[%emt 0:03:10]} Kf8 {[%emt 0:01:56] [#]} 16. Nxe6+ $1 {[%emt 0:00:25]} fxe6 {[%emt 0:00:06]} 17. Qxg6 {[%emt 0:00:06][%cal Oe1g1]} Bf6 {[%emt 0:12:46]} ({Black should try} 17... Ndf6 $1 $14) 18. O-O-O {[%emt 0:03:00]} c5 {[%emt 0:04:40]} 19. Rh3 {[%emt 0:11:17] White is much more active. The black rooks are passive.} ({White should try} 19. Rhe1 $1 $16 {[%cal Re1e6]} cxd4 20. Nxd4 Qxc4+ (20... Bxd4 $2 21. Bb4+ Nc5 22. Rxd4 $18) 21. Bc3) 19... cxd4 $2 {[%emt 0:09:26]} (19... a5 $1 $11) 20. Bb4+ $1 $18 {[%emt 0:00:33]} Ne7 {[%emt 0:01:09]} 21. Nxd4 $40 {[%emt 0:00:35][%cal Rd4e6][%mdl 128] White is out for blood.} Qxc4+ {[%emt 0:08:04] [#]} (21... Qf4+ $2 22. Re3 Bxd4 23. Rxd4 $18 (23. Qxe6 $2 Bxe3+ 24. fxe3 Qf7 $19)) 22. Rc3 $1 {[%emt 0:00:28]} Qd5 $2 {[%emt 0:01:46]} ({Weaker is} 22... Qxb4 23. Nxe6#) (22... Qxa2 23. b3 (23. Rc7 Qa1+ 24. Kc2 Qa4+ 25. b3 Qa2+ 26. Kc1 Qa1+ 27. Kc2 Qa2+ 28. Kc1 Qa1+ 29. Kc2 Qa2+ $11) 23... Qa1+ (23... Bxh4 24. Nxe6#) 24. Kc2 Qa2+ 25. Kc1) 23. Rf3 {[%emt 0:06:22]} Rc8+ {[%emt 0:11:12] [#]} 24. Kb1 $1 {[%emt 0:00:56]} (24. Nc2 Qe5 (24... Rxc2+ $2 25. Kxc2 Qe5 26. Rxd7 $18) 25. Rxd7 Qxb2+ 26. Kd2 Rxc2+ 27. Qxc2 (27. Kd3 $2 Rd2+ 28. Bxd2 Nxg6 $19) 27... Qxb4+ 28. Kd1 Ke8 (28... Qxh4 29. Qb3 $11) 29. Rxe7+ Kxe7 $11 (29... Bxe7 $2 {perishes.} 30. Qc8+ Bd8 31. Qxe6+ Qe7 32. Qg6+ Kd7 33. Rf7 $18)) 24... Qe5 {[%emt 0:00:10]} 25. Re3 {[%emt 0:02:06]} Nc5 {[%emt 0:03:21]} 26. Bxc5 {[%emt 0:00:09]} 1-0

[Event "98th Caplin Hastings Masters 2024-25"]
[Site "Hastings"]
[Date "2024.12.29"]
[Round "2.39"]
[White "White, Stuart A"]
[Black "Buckland, Louis"]
[Result "1-0"]
[ECO "A10"]
[WhiteElo "2017"]
[BlackElo "1856"]
[Annotator "NA RC"]
[PlyCount "33"]
[EventDate "2024.12.23"]
[EventType "swiss"]
[EventCountry "ENG"]
[SourceTitle "playchess.com"]
[Source "ChessBase"]
[SourceQuality "1"]
[TimeControl "5400+30"]

1. c4 {[%emt 0:00:01]} b6 {[%emt 0:00:02]} 2. d4 {[%emt 0:00:05]} Bb7 {[%emt 0:00:05]} 3. Nc3 {[%emt 0:00:15]} e6 {[%emt 0:00:07]} 4. a3 {[%emt 0:00:02]} f5 {[%emt 0:01:04]} 5. d5 {[%emt 0:00:19]} Bd6 {[%emt 0:05:05]} 6. Nf3 {[%emt 0:01:08]} Nf6 {[%emt 0:01:34]} 7. g3 {[%emt 0:02:04]} Qe7 {[%emt 0:07:24]} 8. Bg2 {[%emt 0:06:27]} O-O {[%emt 0:05:55]} 9. O-O {[%emt 0:07:54]} c6 {[%emt 0:15:49]} 10. Bg5 {[%emt 0:05:25]} Bc7 {[%emt 0:14:21]} 11. Re1 {[%emt 0:10:01]} cxd5 {[%emt 0:05:16]} 12. cxd5 {[%emt 0:01:38]} Na6 {[%emt 0:07:55]} 13. b4 {[%emt 0:04:35]} Rac8 {[%emt 0:00:00]} 14. Qb3 {[%emt 0:04:09]} Bb8 {[%emt 0:01:13]} 15. Nd4 {[%emt 0:10:54]} Kh8 {[%emt 0:03:18]} 16. d6 {[%emt 0:07:33]} Qxd6 {[%emt 0:05:01]} 17. Ndb5 {[%emt 0:00:57]} 1-0

[Event "98th Caplin Hastings Masters 2024-25"]
[Site "Hastings"]
[Date "2024.12.29"]
[Round "2.40"]
[White "Marusenko, Petr"]
[Black "Bazakutsa, Svyatoslav"]
[Result "1/2-1/2"]
[ECO "E68"]
[WhiteElo "2021"]
[BlackElo "2484"]
[Annotator "TA"]
[PlyCount "202"]
[EventDate "2024.12.23"]
[EventType "swiss"]
[EventCountry "ENG"]
[SourceTitle "playchess.com"]
[Source "ChessBase"]
[SourceQuality "1"]
[TimeControl "5400+30"]

{[%evp 136,202,-8,-7,0,-89,-89,-588,-8,-8,-8,-8,-8,-8,-8,-8,0,-8,-8,-8,-8,-8,-8,-8,-8,-8,-8,-8,-8,-29974,-8,-8,-8,-8,-8,-8,-8,-8,-8,-8,-8,-8,0,-8,-8,-8,-8,-8,-8,-8,-8,-8,-8,-8,-8,-8,0,-8,0,-8,-8,-8,-8,-8,-8,-8,-8,-305,-305]} 1. d4 {[%emt 0:03:06]} Nf6 {[%emt 0:00:21]} 2. c4 {[%emt 0:00:02]} g6 {[%emt 0:00:11]} 3. Nc3 {[%emt 0:00:04]} Bg7 {[%emt 0:00:08]} 4. g3 {[%emt 0:00:02]} O-O {[%emt 0:00:11]} 5. Bg2 {[%emt 0:00:01]} d6 {[%emt 0:00:10]} 6. Nf3 {[%emt 0:00:05]} Nbd7 {[%emt 0:01:39]} 7. O-O {[%emt 0:00:30]} e5 {[%emt 0:00:05]} 8. e4 {[%emt 0:00:22]} exd4 {[%emt 0:00:22]} 9. Nxd4 {[%emt 0:00:06]} Re8 {[%emt 0:00:11]} 10. h3 {[%emt 0:00:14]} Nc5 {[%emt 0:00:19]} 11. Re1 {[%emt 0:00:08]} h6 {[%emt 0:00:07]} 12. Qc2 {[%emt 0:02:25]} Ne6 {[%emt 0:26:42]} 13. Nf3 {[%emt 0:06:23]} Nd7 {[%emt 0:05:27]} 14. Be3 {[%emt 0:03:12]} Ne5 {[%emt 0:03:01]} 15. Nd2 {[%emt 0:05:20]} c5 {[%emt 0:12:08]} 16. Rad1 {[%emt 0:02:06]} a6 {[%emt 0:02:56]} 17. f4 {[%emt 0:05:05]} Nc6 {[%emt 0:00:17]} 18. Nf3 {[%emt 0:00:03]} Ned4 {[%emt 0:03:49]} 19. Qf2 {[%emt 0:01:58]} Be6 {[%emt 0:02:05]} 20. e5 {[%emt 0:02:43]} dxe5 {[%emt 0:22:12]} 21. fxe5 {[%emt 0:02:22]} Qa5 {[%emt 0:00:13]} 22. Ne4 {[%emt 0:02:22]} Nxf3+ {[%emt 0:03:37]} 23. Bxf3 {[%emt 0:06:07]} Nxe5 {[%emt 0:01:02]} 24. Nd6 {[%emt 0:04:16]} Nxf3+ {[%emt 0:05:12]} 25. Qxf3 {[%emt 0:00:11]} Qxa2 {[%emt 0:00:21]} 26. Nxe8 {[%emt 0:03:36]} Rxe8 {[%emt 0:00:02]} 27. Qxb7 {[%emt 0:02:34]} Qxc4 {[%emt 0:03:17]} 28. Qc6 {[%emt 0:00:55]} Rc8 {[%emt 0:02:07]} 29. Qg2 {[%emt 0:00:53]} Rb8 {[%emt 0:02:33]} 30. Rd2 {[%emt 0:03:39]} Rb3 {[%emt 0:00:29]} 31. Bf4 {[%emt 0:02:01]} Kh7 {[%emt 0:00:44]} 32. Be5 {[%emt 0:01:05]} Bxe5 {[%emt 0:02:51]} 33. Rxe5 {[%emt 0:00:07]} Rxb2 {[%emt 0:00:55]} 34. Rxb2 {[%emt 0:04:35]} Qd4+ {[%emt 0:00:02]} 35. Kh2 {[%emt 0:00:13]} Qxe5 {[%emt 0:00:03]} 36. Re2 {[%emt 0:00:27]} Qf6 {[%emt 0:01:46]} 37. Qf2 {[%emt 0:01:54]} Qe7 {[%emt 0:00:19]} 38. Qf4 {[%emt 0:02:02]} h5 {[%emt 0:00:25]} 39. Qe5 {[%emt 0:06:37]} h4 {[%emt 0:00:34]} 40. g4 {[%emt 0:00:12]} g5 {[%emt 0:00:04]} 41. Rb2 {[%emt 0:00:53]} f6 {[%emt 0:01:20]} 42. Qe4+ {[%emt 0:00:14]} Kh6 {[%emt 0:00:02]} 43. Rb7 {[%emt 0:00:20]} Qd6+ {[%emt 0:00:04]} 44. Kg1 {[%emt 0:00:12]} Qg3+ {[%emt 0:01:09]} 45. Kf1 {[%emt 0:00:30]} Qxh3+ {[%emt 0:00:10]} 46. Ke1 {[%emt 0:00:01]} Qc3+ {[%emt 0:00:38]} 47. Kf2 {[%emt 0:00:07]} Qd2+ {[%emt 0:00:45]} 48. Kg1 {[%emt 0:00:06]} Qd1+ {[%emt 0:00:44]} 49. Kf2 {[%emt 0:00:03]} Qd2+ {[%emt 0:00:22]} 50. Kg1 {[%emt 0:00:52]} Qd4+ {[%emt 0:00:15]} 51. Qxd4 {[%emt 0:00:00]} cxd4 {[%emt 0:00:01]} 52. Rb6 {[%emt 0:00:00]} Bxg4 {[%emt 0:00:44]} 53. Rxf6+ {[%emt 0:00:00]} Kh5 {[%emt 0:00:20]} 54. Rd6 {[%emt 0:00:38]} Bf3 {[%emt 0:00:58]} 55. Rxd4 {[%emt 0:00:08]} g4 {[%emt 0:00:04]} 56. Kf2 {[%emt 0:00:39]} Bc6 {[%emt 0:00:55]} 57. Rd6 {[%emt 0:00:58]} g3+ {[%emt 0:00:02]} 58. Kg1 {[%emt 0:00:05]} Bb7 {[%emt 0:01:10]} 59. Rd7 {[%emt 0:00:34]} Bf3 {[%emt 0:00:28]} 60. Rh7+ {[%emt 0:00:25]} Kg5 {[%emt 0:00:36]} 61. Rg7+ {[%emt 0:00:08]} Kf6 {[%emt 0:00:36]} 62. Rh7 {[%emt 0:00:13]} Kg5 {[%emt 0:00:01]} 63. Rg7+ {[%emt 0:00:20]} Kh6 {[%emt 0:00:08]} 64. Rf7 {[%emt 0:01:01]} Be2 {[%emt 0:00:52]} 65. Kg2 {[%emt 0:00:37]} Bd3 {[%emt 0:00:29]} 66. Rf8 {[%emt 0:01:18]} Kg5 {[%emt 0:00:32]} 67. Rg8+ {[%emt 0:00:25]} Kf4 {[%emt 0:00:20]} 68. Rh8 {[%emt 0:00:11]} Kg4 {[%emt 0:01:10]} (68... Be4+ $1 $17 69. Kg1 Kg5 70. Rg8+ Bg6) 69. Rg8+ $11 {[%emt 0:00:09]} Kf4 {[%emt 0:00:04]} (69... Kf5 $11) 70. Rh8 $1 $17 {[%emt 0:00:23] [#]} Be4+ $1 {[%emt 0:00:16]} 71. Kh3 $2 {[%emt 0:00:08][%mdl 8192]} (71. Kf1 $17 {is more resistant.}) 71... Bf5+ $2 {[%emt 0:00:21]} (71... Kf3 $19 {( -> ...Kf2)} 72. Rf8+ Ke3) 72. Kxh4 $11 {[%emt 0:00:10]} g2 {[%emt 0:00:03]} 73. Rg8 {[%emt 0:00:25]} Kf3 {[%emt 0:00:09]} 74. Rg5 {[%emt 0:01:39]} Bc8 {[%emt 0:02:05]} 75. Rg8 {[%emt 0:01:16]} Bf5 {[%emt 0:00:05]} (75... a5 $5 76. Rf8+ $8 Ke3 77. Re8+ Kd4 $11) 76. Rg5 {[%emt 0:01:38]} Bd7 {[%emt 0:00:57]} (76... Be4 $5 77. Kh3 $8 Kf2 $11) 77. Rg7 {[%emt 0:00:00]} a5 {[%emt 0:00:25]} (77... Bc6 $5 78. Kh3 $8 Kf2 $11) 78. Rf7+ {[%emt 0:00:00]} Ke2 {[%emt 0:00:03]} 79. Re7+ {[%emt 0:00:00]} (79. Rg7 $5) 79... Kf2 {[%emt 0:00:07]} (79... Kf1 $5 80. Rf7+ $8 Ke1 81. Re7+ Kf2 82. Rf7+ Ke3 83. Re7+ Kf2 $11) 80. Rf7+ {[%emt 0:00:00]} Ke3 {[%emt 0:00:42]} 81. Re7+ {[%emt 0:00:01]} Kf4 {[%emt 0:00:05]} (81... Kf3 $5 82. Rf7+ $8 Ke3 83. Re7+ Kf3 $11) 82. Rf7+ $2 {[%emt 0:00:10][%mdl 8192] [#]} (82. Rg7 $11) 82... Ke5 $2 {[%emt 0:00:32]} (82... Bf5 $1 {mates} 83. Rg7 Kf3 84. Rg5 Bc8 85. Rg8 a4 86. Rf8+ Ke3 87. Re8+ Kf4 88. Rxc8 g1=Q (88... g1=R 89. Rc4+ Kf5 90. Rxa4 $11) 89. Rf8+ Ke3 90. Kh5 Qh2+ 91. Kg6 Qc2+ (91... Qd6+ $2 92. Kf7 $19) 92. Kg7 Qg2+ 93. Kf7 Qd5+ 94. Kg6 a3 (94... Qd6+ $2 95. Kf7 $19) 95. Rf7 Qxf7+ 96. Kxf7 a2 97. Kf8 a1=Q (97... a1=B 98. Kg8 $11) 98. Ke7 Qe5+ 99. Kd7 Qd5+ 100. Ke7 Kf4 101. Ke8 Ke5 102. Kf8 Qd7 103. Kg8 Kf6 104. Kh8 Qg7#) 83. Rg7 $11 {[%emt 0:00:05]} Bc6 {[%emt 0:00:20]} 84. Kh3 {[%emt 0:00:08]} Kd4 {[%emt 0:00:10]} 85. Kh2 {[%emt 0:00:03]} Kc5 {[%emt 0:00:12]} 86. Rg4 {[%emt 0:01:42]} Bd5 {[%emt 0:00:10]} (86... a4 {simplifies} 87. Rxa4 Bxa4 88. Kxg2 Kc4) 87. Kg1 {[%emt 0:00:12]} Kb5 {[%emt 0:00:11]} 88. Rg5 {[%emt 0:00:08]} Kc6 {[%emt 0:00:07]} 89. Rg4 {[%emt 0:00:20]} Kc5 {[%emt 0:00:05]} 90. Kf2 {[%emt 0:00:08]} Bc6 {[%emt 0:00:07]} 91. Kg1 {[%emt 0:00:49]} Kb5 {[%emt 0:00:09]} 92. Rg5+ {[%emt 0:00:10]} Kb4 {[%emt 0:00:09]} 93. Rg4+ {[%emt 0:00:10]} Kb3 {[%emt 0:00:08]} 94. Rg3+ {[%emt 0:00:08]} Kc4 {[%emt 0:00:25]} 95. Rg4+ {[%emt 0:00:11]} Kc5 {[%emt 0:00:06]} 96. Kf2 {[%emt 0:00:08]} Bd5 {[%emt 0:00:08]} 97. Ke3 {[%emt 0:01:21]} a4 {[%emt 0:00:16]} 98. Kd2 {[%emt 0:00:03]} Bf3 {[%emt 0:00:34]} 99. Rg3 {[%emt 0:00:15]} Kd4 {[%emt 0:00:21]} 100. Kc1 {[%emt 0:00:08]} Ke3 {[%emt 0:00:07]} (100... Be4 $5 101. Kb2 $8 Ke5 $11) 101. Rxg2 {[%emt 0:00:06]} Bxg2 {[%emt 0:00:05]} 1/2-1/2